Cogmind - Beta 14 @@@ ROGUE MODE // 2025.01.18 @ 21:40:20 Player: Mutetourette Result: Self-destructed Performance ------------- Evolutions (2) 1000 Regions Visited (4) 800 Robots Destroyed (26) 130 Value Destroyed (537) 537 Prototype IDs (1) 20 Alien Tech Used (0) 0 Bonus (42) 42 TOTAL SCORE: 2529 Bonus ------- Follower Combat Kills 74 Friendly Fire -32 Cogmind --------- Core Integrity 382/550 Matter 196/300 Energy 265/265 System Corruption 0% Temperature Critical (629) Movement Walking (190) Ox1 Location -8/Materials Parts ------- > --- POWER (1) -------- Improved Ion Engine > --- PROPULSION (2) --- Aluminum Leg > --- UTILITY (4) ------ Energy Filter > --- WEAPON (4) ------- Improved EM Shotgun Beam Rifle Light Assault Rifle > --- INVENTORY (5) ---- Light Nuclear Core Light Treads Light Treads Improved EM Shotgun Beam Rifle Peak State ------------ > --- POWER ------------ Improved Ion Engine > --- PROPULSION ------- Aluminum Leg Aluminum Leg > --- UTILITY ---------- Improved Terrain Scan Processor Energy Filter Scrap Shield > --- WEAPON ----------- Improved EM Shotgun Beam Rifle Light Assault Rifle Flamer > --- INVENTORY -------- Light Nuclear Core Light Treads Light Treads Improved EM Shotgun Beam Rifle [Rating: 24] Favorites ----------- Power Improved Ion Engine Engine Improved Ion Engine Propulsion Aluminum Leg Leg Aluminum Leg Utility Scrap Shield Device Seismic Detector Storage Small Storage Unit Processor Targeting Computer Protection Scrap Shield Weapon Light Assault Rifle Energy Gun Beam Rifle Ballistic Gun Light Assault Rifle Special Weapon Mining Laser Build | -11 -10 -10 -10 -8 ------- Run | Yrd Mat Min Sub Mat Slots Evolved 4 | . . . . 4 Power . | . . . . . Propulsion . | . . . . . Utility 2 | . . . . 2 Weapon 2 | . . . . 2 Parts Attached 31 | 7 3 8 7 6 Power 2 | 1 . 1 . . Engine 2 | 1 . 1 . . Core . | . . . . . Reactor . | . . . . . Propulsion 4 | 2 1 1 . . Treads . | . . . . . Leg 4 | 2 1 1 . . Wheel . | . . . . . Hover . | . . . . . Flight . | . . . . . Utility 8 | 2 . 3 1 2 Device 3 | 1 . 1 . 1 Storage 1 | 1 . . . . Processor 2 | . . 1 . 1 Hackware . | . . . . . Protection 2 | . . 1 1 . Artifact . | . . . . . Weapon 17 | 2 2 3 6 4 Energy Gun 8 | 2 1 . 3 2 Energy Cannon . | . . . . . Ballistic Gun 3 | . . 2 1 . Ballistic Cannon . | . . . . . Launcher . | . . . . . Special Weapon 6 | . 1 1 2 2 Impact Weapon . | . . . . . Slashing Weapon . | . . . . . Piercing Weapon . | . . . . . Special Melee Weapon . | . . . . . Unidentified Prototypes 1 | . . . . 1 Parts Lost 5 | . . 2 . 3 Power . | . . . . . Propulsion 1 | . . . . 1 Utility 3 | . . 2 . 1 Weapon 1 | . . . . 1 Highest Loss Streak 3 | . . 1 . 3 To Critical Strikes . | . . . . . Average Slot Usage (%) 89 | . 100 99 85 76 Engine 13 | . 14 14 14 9 Leg 26 | . 28 28 28 17 Device 2 | . 14 6 . 1 Storage 5 | . 14 14 . . Processor 1 | . . 3 . 3 Protection 9 | . . 4 14 8 Energy Gun 9 | . 26 . 10 17 Ballistic Gun 14 | . . 21 14 9 Special Weapon 4 | . 1 5 3 9 Peak Build Rating 24 | 7 8 11 11 24 Average Rating 10 | 5 7 9 10 18 On Entrance 6 | . 7 8 9 10 Naked Turns . | . . . . . Heaviest Build 37 | 11 11 16 29 37 Greatest Support 20 | 20 20 20 20 20 Greatest Overweight (x) 1 | . . . 1 1 Average Overweight (x) . | . . . . 1 Largest Inventory Capacity 8 | 8 8 8 8 5 Average Capacity 6 | 7 8 8 5 5 Most Carried 8 | 7 8 8 8 5 Average Carried 6 | 4 7 7 5 4 Final Capacity 8 | 8 8 8 5 5 Final Carried 8 | 6 8 8 5 5 Class Distribution -------------------- 67% | Scavenger-Mutant 21% | Mutant 11% | Scavenger-Tank Dominant Class ---------------- Mutant | -10/Materials Scavenger-Mutant | -10/Mines Scavenger-Mutant | -10/Subcaves Scavenger-Tank | -8/Materials Resources | -11 -10 -10 -10 -8 ----------- Run | Yrd Mat Min Sub Mat Matter Collected 627 | 270 20 205 70 62 Remotely . | . . . . . Salvage Created 807 | 165 146 257 53 186 Parts 43 | 7 13 15 3 5 Haulers Intercepted 1 | . 1 . . . Recyclers Shooed 2 | 1 . . . 1 Parts Field Recycled . | . . . . . Retrieved Matter . | . . . . . Parts Self-Destructed 4 | . . . 4 . Prevented . | . . . . . Kills | -11 -10 -10 -10 -8 ------- Run | Yrd Mat Min Sub Mat Combat Hostiles Destroyed 18 | . 3 6 2 7 Guns 15 | . 3 6 2 4 AOE 2 | . . . . 2 Classes Destroyed 10 | 2 4 2 1 1 Worker 1 | . . 1 . . Tunneler 4 | 4 . . . . Hauler 1 | . 1 . . . Recycler 1 | 1 . . . . Operator 1 | . 1 . . . Swarmer 9 | . 2 2 1 4 Grunt 4 | . 1 2 . 1 Duelist 1 | . . . . 1 Sentry 3 | . . 2 . 1 Subdweller 1 | . . . 1 . Best Kill Streak 4 | 3 3 2 1 4 Combat Bots Only 4 | . 2 2 1 4 Max Kills in Single Turn 2 | 1 1 1 1 2 Gunslinging . | . . . . . Exploded 2 | . . . . 2 Melee . | . . . . . Uniques/NPCs Destroyed . | . . . . . Combat | -11 -10 -10 -10 -8 -------- Run | Yrd Mat Min Sub Mat Hostile Shots Fired 109 | . 17 37 12 43 Missed 29 | . 7 9 5 8 Damage Taken 1178 | . 102 369 78 629 Core 220 | . 25 27 . 168 Absorbed by Shields . | . . . . . Core Remaining (%) 89 | 100 . . 79 . Volleys Fired 80 | 8 13 31 15 13 Largest 3 | 2 2 2 2 3 Hottest 201 | 80 100 100 100 201 Shots Fired 153 | 16 25 57 21 34 Gun 129 | 16 24 52 12 25 Cannon . | . . . . . Launcher . | . . . . . Special 24 | . 1 5 9 9 Kinetic 65 | . . 52 6 7 Thermal 83 | 16 25 5 15 22 Explosive . | . . . . . Electromagnetic 5 | . . . . 5 Robot Hit Streak 9 | 4 3 9 4 9 Robot Miss Streak 4 | 1 2 4 2 3 Penetration Max . | . . . . . Secondary Targets 1 | . 1 . . . Max Gunslinging Chain 1 | . 1 . . . Shots Hit Robots 91 | 11 13 35 7 25 Core Hits 49 | 6 8 17 5 13 Critical Kills . | . . . . . Critical Parts Destroyed 1 | . . 1 . . Critical Strikes 4 | . . 1 2 1 Burn 3 | . . . 2 1 Destroy 1 | . . 1 . . Melee Attacks . | . . . . . Impact . | . . . . . Slashing . | . . . . . Piercing . | . . . . . Sneak Attacks . | . . . . . Combat Hostiles . | . . . . . Follow-up Attacks . | . . . . . Damage Inflicted 1180 | 121 138 377 119 425 Guns 998 | 121 138 376 119 244 Cannons . | . . . . . Explosions 102 | . . . . 102 Melee . | . . . . . Ramming 1 | . . 1 . . Kinetic 487 | . . 376 61 50 Thermal 643 | 121 138 . 58 326 Explosive . | . . . . . Electromagnetic 49 | . . . . 49 Impact . | . . . . . Slashing . | . . . . . Piercing . | . . . . . Highest Corruption . | . . . . . Average Corruption . | . . . . . Corruption Purged . | . . . . . Corruption Blocked . | . . . . . Overload Shots . | . . . . . Overflow Damage 3 | . . . . 3 Projectiles . | . . . . . Explosions 3 | . . . . 3 Melee . | . . . . . Knockbacks . | . . . . . Impact . | . . . . . Kinetic . | . . . . . Secondary . | . . . . . Self-Inflicted Damage 39 | . . . . 39 Shots 1 | . . . . 1 Rammed . | . . . . . Targets Rammed 1 | . . 1 . . Kicked 1 | . . 1 . . Crushed . | . . . . . Highest Temperature 629 | 54 60 103 8 629 Average Temperature 72 | 19 22 23 7 184 Received Heat Transfer 303 | . 24 126 9 144 Effects 8 | . . . . 8 Shutdowns 1 | . . . . 1 Interference 2 | . . . . 2 Matter Decay 2 | . . . . 2 Short Circuit 1 | . . . . 1 Damage (major) 1 | . . . . 1 Damage (core) 1 | . . . . 1 Siege Activations . | . . . . . Robots Corrupted . | . . . . . Combat Hostiles . | . . . . . Parts Fried . | . . . . . Impact Corruptions . | . . . . . Robots Melted 1 | . . . . 1 Combat Hostiles 1 | . . . . 1 Parts Melted 7 | . . . . 7 Heat Transferred 2136 | 275 325 . 296 1240 Parts Sabotaged . | . . . . . Parts Stolen . | . . . . . Parts Stripped . | . . . . . Power Chain Reactions 1 | . . . . 1 Alert | -11 -10 -10 -10 -8 ------- Run | Yrd Mat Min Sub Mat Peak Influence 218 | 25 158 181 . 218 Initial 61 | . 16 61 . . Average 78 | 13 96 75 . 105 Maximum Alert Level 1 | . . . . 1 Low Security (%) 99 | 100 100 100 . 98 Level 1 . | . . . . 1 Level 2 . | . . . . . Level 3 . | . . . . . Level 4 . | . . . . . Level 5 . | . . . . . High Security . | . . . . . Max Security . | . . . . . Squads Dispatched 2 | . 1 . . 1 Investigation . | . . . . . Extermination . | . . . . . Reinforcement 2 | . 1 . . 1 Assault . | . . . . . Garrison . | . . . . . Intercept . | . . . . . Searches Triggered . | . . . . . Construction Impeded . | . . . . . Haulers Reinforced . | . . . . . Active Scanning Responses . | . . . . . Cargo Convoy Interrupts . | . . . . . Stealth | -11 -10 -10 -10 -8 --------- Run | Yrd Mat Min Sub Mat Distress Signals 1 | . . . . 1 Communications Jammed . | . . . . . Distress Signals . | . . . . . Times Spotted 34 | . 7 8 6 13 Peak Tracking Total 5 | . 3 3 3 5 Tactical Retreats 4 | . 1 2 . 1 Traps | -11 -10 -10 -10 -8 ------- Run | Yrd Mat Min Sub Mat Traps Triggered 1 | . 1 . . . Indirectly . | . . . . . Trap Hack Attempts . | . . . . . Triggered . | . . . . . Disarmed . | . . . . . Reprogrammed . | . . . . . Reused . | . . . . . Traps Extracted . | . . . . . Installed . | . . . . . Triggered . | . . . . . Machines | -11 -10 -10 -10 -8 ---------- Run | Yrd Mat Min Sub Mat Machines Disabled 1 | . . . . 1 Max in Single Turn 1 | . . . . 1 Machines Repaired . | . . . . . Machines Dismantled . | . . . . . Machines Sabotaged . | . . . . . Overloaded Fab Kills . | . . . . . Hacking | -11 -10 -10 -10 -8 --------- Run | Yrd Mat Min Sub Mat Machines Accessed 5 | . 3 . 1 1 Terminals 4 | . 3 . . 1 Fabricators . | . . . . . Repair Stations . | . . . . . Recycling Units . | . . . . . Scanalyzers . | . . . . . Garrison Access . | . . . . . Total Hacks 14 | . 8 . 5 1 Successful 12 | . 6 . 5 1 Failed 2 | . 2 . . . Catastrophic . | . . . . . Database Lockouts . | . . . . . Manual 8 | . 6 . . 2 Terminals 9 | . 8 . . 1 Fabricators . | . . . . . Repair Stations . | . . . . . Recycling Units . | . . . . . Scanalyzers . | . . . . . Garrison Access . | . . . . . Terminal Hacks 6 | . 1 . 5 . Record 5 | . . . 5 . Zone Layout 1 | . 1 . . . Fabricator Hacks . | . . . . . Repair Station Hacks . | . . . . . Recycling Unit Hacks . | . . . . . Scanalyzer . | . . . . . Garrison Access Hacks . | . . . . . Unauthorized Hacks 6 | . 5 . . 1 Terminals 6 | . 5 . . 1 Assimilate 2 | . 2 . . . Botnet 4 | . 3 . . 1 Fabricators . | . . . . . Repair Stations . | . . . . . Recycling Units . | . . . . . Scanalyzers . | . . . . . Garrison Access . | . . . . . Data Cores Recovered . | . . . . . Used . | . . . . . Hacking Detections 3 | . 3 . . . Full Trace Events . | . . . . . Feedback Events . | . . . . . Feedback Blocked . | . . . . . Robot Schematics Acquired . | . . . . . Robots Built . | . . . . . Authchips . | . . . . . Time . | . . . . . Total Robot Build Rating . | . . . . . Part Schematics Acquired . | . . . . . Parts Built . | . . . . . Authchips . | . . . . . Time . | . . . . . Total Part Build Rating . | . . . . . Parts Repaired . | . . . . . Time . | . . . . . Parts Recycled . | . . . . . Recycled Matter . | . . . . . Retrieved Matter . | . . . . . Retrieved Components . | . . . . . Parts Scanalyzed . | . . . . . Part Schematics Acquired . | . . . . . Parts Damaged . | . . . . . Bothacking | -11 -10 -10 -10 -8 ------------ Run | Yrd Mat Min Sub Mat Used RIF Installer . | . . . . . Robots Hacked . | . . . . . Non-combat . | . . . . . Combat . | . . . . . Robot Hacks Applied . | . . . . . Relay Couplers Released . | . . . . . Fabnet Peak Effective % . | . . . . . Robots Rewired . | . . . . . Allies Hacked . | . . . . . Hacks Repelled . | . . . . . Allies | -11 -10 -10 -10 -8 -------- Run | Yrd Mat Min Sub Mat Total Allies 2 | . . 2 . . Largest Group 2 | . . 2 2 2 Highest-Rated Group 42 | . . 42 42 42 Highest-Rated Ally 31 | . . 31 31 31 Total Orders . | . . . . . Ally Attacks 10 | . . . 9 1 Total Damage 146 | . . . 146 . Kills 4 | . . . 4 . Allies Corrupted . | . . . . . Allies Melted . | . . . . . Intel | -11 -10 -10 -10 -8 ------- Run | Yrd Mat Min Sub Mat Robot Analysis Total . | . . . . . Derelict Logs Recovered 2 | . . 1 1 . Drone Launches . | . . . . . Drone Recoveries . | . . . . . Exploration | -11 -10 -10 -10 -8 ------------- Run | Yrd Mat Min Sub Mat Turns Passed 3200 | 171 215 873 1575 366 Spaces Moved 1803 | 114 123 613 804 149 Core 11 | 11 . . . . Treads . | . . . . . Legs 1792 | 103 123 613 804 149 Wheels . | . . . . . Hover . | . . . . . Flight . | . . . . . Fastest Speed 50 | 50 120 120 120 190 Average Speed 153 | 113 120 120 183 190 Slowest Speed 190 | 120 120 120 190 190 Overloaded Moves . | . . . . . Propulsion Burnouts . | . . . . . Robots Hopped . | . . . . . Cave-ins Triggered . | . . . . . Exploration Rate (%) 36 | 4 35 72 56 16 Regions Visited 4 Branch Regions 2 Pre-discovered Areas . | . . . . . Known Exits Taken . | . . . . . Unknown Exits Taken 4 | 1 1 1 1 . Scrap Searched 1 | . . 1 . . Spaces Dug 4 | . 1 3 . . Terrain Destroyed 8 | . 1 5 . 2 Melee . | . . . . . Projectile 6 | . 1 5 . . AOE 2 | . . . . 2 Terrain Rammed . | . . . . . Walls Destroyed . | . . . . . Machines Disabled . | . . . . . Actions | -11 -10 -10 -10 -8 --------- Run | Yrd Mat Min Sub Mat Total 2055 | 138 163 690 869 195 Wait 105 | . 22 27 35 21 Move 1799 | 113 122 612 803 149 Hop . | . . . . . Pick Up 21 | 10 2 4 1 4 Fast Attach 8 | 3 . 3 1 1 Attach 9 | 4 . 1 . 4 Detach . | . . . . . Swap 14 | . 3 4 6 1 Drop 17 | . 1 7 7 2 Fire 80 | 8 13 31 15 13 Melee . | . . . . . Ram . | . . . . . Kick 1 | . . 1 . . Crush . | . . . . . Escape Stasis . | . . . . . Rewire . | . . . . . Trap . | . . . . . Miscellaneous 1 | . . . 1 . Route ------- -11/Scrapyard -10/Materials -10/Mines (discovered 3 exits: [*Mat x2] / *Sub) -10/Subcaves (discovered 2 exits: *Mat x2) -8/Materials History --------- Turn | Location | Event 11 | -11/Scrapyard | Discovered new exit (range 15) 172 | -11/Scrapyard | Entered Materials 300 | -10/Materials | Build established: Mutant 357 | -10/Materials | Discovered new exit (range 9) 387 | -10/Materials | Entered Mines 603 | -10/Mines | Learned Materials terminal intel 680 | -10/Mines | Discovered new exit (range 9) 1019 | -10/Mines | Build established: Scavenger-Mutant 1043 | -10/Mines | Discovered new exit (range 4) 1062 | -10/Mines | Discovered new exit (range 9) 1260 | -10/Mines | Entered Subcaves 1260 | -10/Subcaves | Accompanied by 2 allies 1265 | -10/Subcaves | Led the pair of lost Derelicts to an unsafe place 1323 | -10/Subcaves | A swath of the cavern ceiling suddenly collapsed 1351 | -10/Subcaves | Shifting Twisted Machinery released Scrap Shield 1359 | -10/Subcaves | Shifting Twisted Machinery released Sub. Power Source 1750 | -10/Subcaves | A swath of the cavern ceiling suddenly collapsed 2252 | -10/Subcaves | Shifting Twisted Machinery released Flamer 2292 | -10/Subcaves | Shifting Twisted Machinery released Sub. Monowheel 2297 | -10/Subcaves | Discovered new exit (range 9) 2335 | -10/Subcaves | Visited Clippyterm 2340 | -10/Subcaves | Learned Factory fabricator intel 2340 | -10/Subcaves | Learned Research security intel 2416 | -10/Subcaves | Learned Materials trap positions 2580 | -10/Subcaves | Discovered new exit (range 10) 2835 | -10/Subcaves | Entered Materials 2835 | -8/Materials | Accompanied by 2 allies 2835 | -8/Materials | Evolved 4 slots: Utility x2, Weapon x2 2836 | -8/Materials | Loaded intel: 12 trap records 2837 | -8/Materials | Loaded intel: 12 terminal locations 3129 | -8/Materials | Build established: Scavenger-Tank 3201 | -8/Materials | Self-destructed Last Messages --------------- 03193_ Overheating: Lgt. Assault Rifle damaged (-33). 03195_ Imp. Ion Engine melted. 03195_ Katana melted. 03195_ Melee Analysis Suite melted. 03195_ Imp. Aluminum Leg melted. 03195_ L-31 Rogue destroyed. 03196_ Overheating: Core damaged (-93). 03197_ Power failure, Imp. Ion Engine shutdown. 03197_ Overheating: Matter decay (-53). 03197_ Critical hit (Burn: +37). 03199_ Overheating: System interference. 03199_ Lgt. Assault Rifle temporarily disabled. 03199_ Flamer destroyed. 03199_ Imp. Heat Sink melted. 03199_ G-47 Trooper destroyed. 03200_ Overheating: Matter decay (-51). 03201_ Beam Rifle broken. 03201_ Overheating: Short circuit. Map ----- +----------------------------------------------------+ | ?????????????????????????????????# | | ?????????????????????????????????# | | ?????????????????????????????????# | | ???????????????? ???????????????# | | ???????????????? ??????????????# | | ???????????????? ? """########## | | ???????????????# | | ???????????????# ! | | ???????????????# """ | | ???????????????# """ | | ???????????????+ """ | | ???????????????# ####### | | ???????????????# #?????? | | ???????????????# """ #?????? | | ???????????????# """ ???????? | | ????############ """ ?????????? | | ????# ## ???????##### | | ?????? ## ?????????# | | ???????? ## #?T????????# "" | | ?????????? ## ##?????????# "" | | ???????#+###+## ########### "" | | ???????# # "" | | ???????# %+ | | ???????#= ##### ## ### "" | | ???????#!%#???##+#### #?# "" | | ???????#%@#?????????#!!!! !#?# "" | | ???????# #?????????#!!!!!!#?# "" | | ???????#Yg#?????????########?# | | ???????+ +??????????????????##### | | ?????? # #??????????????????????? | | ????? # #??????????????????????? | | ????? ?####??????????????????????? | | ???? ???????????????????????????? | | ???"T"???????????????????????????? | | ?? ?????????????????????????????? | | ??##?????????????????????????????? | | ?????????????????????????????????? | | ?????????????????????????????????? | | ?????????????????????????????????? | | ?????????????????????????????????? | | | | | | | | | | | | | | | | | | | | | +----------------------------------------------------+ Best States ------------- Heat Dissipation 31 Energy Generation 12 Energy Capacity 265 Matter Stores 300 Matter Capacity 300 Sight Range 16 Terrain Scan Range 16 Terrain Scan Density 110 Armor Coverage 800 Utility Shielding 33 Evasion (%) 55 Targeting Accuracy 5 Energy Filtering 30 Item Schematics ----------------- None Robot Schematics ------------------ None Fabricated ------------ Nothing Alien Tech Used ----------------- None Achievements -------------- None Challenges ------------ None Game ------ Seed ColdColdRecalibrator Manual? 0 Play Time 00:24:01 Cumulative 27.8 hours Start 2025.01.18 @ 21:17:31 End 2025.01.18 @ 21:40:20 Sessions 3 Manual Loads 0 Difficulty Rogue Special Mode None Game No. 66 Rogue 66 Adventurer 0 Explorer 0 Win Type - Total 0 Types 0/0/0/0/0/0/0/0/0 Lore% 36 Gallery% 33 Achievement% 32 Wizard Run 0 Options --------- Layout 1 ASCII 0 Keyboard 0 Movement Mouse Keybinds 0 Fullscreen 1 Font 24/Smallcaps Map View 50x35 Zoom Use 0% Tactical HUD 1 Map Filters NONE Filters NONE Steam 1 RUN: e51f5b93-c862-45e4-a09e-21ba3dc7caa3